bitfinex-derivatives/quotes_BTCF0:USTF0_20251128
["timestamp","ask_amount","ask_price","bid_price","bid_amount"]
[1764339837772,2.08597201,92613.0,92612.0,0.0630588]
[1764339839072,1.61137201,92613.0,92612.0,0.0630588]
[1764339839273,0.17276201,92613.0,92612.0,0.0630588]
[1764339839470,0.00216201,92613.0,92612.0,0.0630588]
[1764339839667,0.05121,92634.0,92633.0,0.0630563]
[1764339839972,0.52797,92634.0,92633.0,0.0630563]
[1764339840274,2.02797,92634.0,92633.0,0.0107963]
[1764339840472,0.05121,92630.0,92629.0,0.0630567]
[1764339840664,0.42121,92630.0,92629.0,0.0630567]
[1764339841073,0.05821,92634.0,92633.0,0.0630563]
[1764339842076,0.05921,92634.0,92633.0,0.0630563]
[1764339842278,0.05221,92634.0,92633.0,0.0630563]
[1764339842579,0.48221,92634.0,92633.0,0.0630563]
[1764339842980,0.48921,92634.0,92633.0,0.0630563]
[1764339843174,0.48921,92634.0,92633.0,0.02609]
[1764339843375,0.06938,92633.0,92632.0,0.0107964]
[1764339843677,0.43938,92633.0,92632.0,0.0528764]
[1764339843977,0.43938,92633.0,92632.0,0.0947764]
[1764339844178,0.008,92634.0,92632.0,0.0947764]
[1764339844179,0.008,92634.0,92633.0,0.06875]
[1764339844371,0.00532,92657.0,92645.0,0.0795449]
[1764339844576,0.0155,92640.0,92620.0,0.06891192]
[1764339844878,0.06938,92625.0,92624.0,0.08398]
[1764339845078,0.06938,92640.0,92639.0,0.0795456]
[1764339845376,0.41,92640.0,92639.0,0.06875]
[1764339845587,0.24032985,92646.0,92645.0,0.06875]
[1764339845781,0.65032985,92646.0,92645.0,0.06875]
[1764339846173,0.06938,92641.0,92640.0,0.06875]
[1764339846372,0.49938,92641.0,92640.0,0.06875]
[1764339846973,0.49938,92641.0,92639.0,0.011]
[1764339846974,0.0801755,92640.0,92639.0,0.011]
[1764339847273,0.0801755,92640.0,92616.0,0.0107982]
[1764339847274,0.06938,92621.0,92616.0,0.0107982]
[1764339847476,0.0107955,92640.0,92620.0,0.06891192]
[1764339847676,0.06938,92632.0,92631.0,0.06875]
[1764339847871,0.00026985,92646.0,92630.0,0.01523]
[1764339848078,0.24006,92645.0,92644.0,0.06875]
[1764339848281,0.67006,92645.0,92644.0,0.06875]
[1764339848484,0.06938,92642.0,92641.0,0.0107953]
[1764339848673,0.49938,92642.0,92641.0,0.0528753]
[1764339849479,0.49938,92642.0,92641.0,0.0795453]
[1764339849984,0.67006,92642.0,92641.0,0.0107953]
[1764339850185,0.67006,92642.0,92641.0,0.0528753]
[1764339850785,0.67006,92642.0,92641.0,0.0107953]
[1764339851276,0.43,92642.0,92641.0,0.0795453]
[1764339851476,0.06964985,92646.0,92645.0,0.0795449]
[1764339851683,0.43235985,92646.0,92645.0,0.0795449]
[1764339851984,0.41235985,92646.0,92645.0,0.0795449]
[1764339852482,0.10026985,92646.0,92645.0,0.0795449]
[1764339852881,0.00026985,92646.0,92645.0,0.0795449]
[1764339853081,0.00026985,92646.0,92645.0,0.0915449]
[1764339853481,0.04111985,92646.0,92645.0,0.0915449]
[1764339854184,0.00026985,92646.0,92645.0,0.0915449]
[1764339857190,0.00026985,92646.0,92645.0,0.11018168]
[1764339859790,0.08390985,92646.0,92645.0,0.11018168]
[1764339860184,0.00026985,92646.0,92645.0,0.11018168]
[1764339860789,0.08390985,92646.0,92645.0,0.11018168]
[1764339861685,0.08819957,92697.0,92678.0,0.0953311]
[1764339861891,0.45414,92679.0,92678.0,0.0953311]
[1764339862091,0.45414,92679.0,92678.0,0.0107911]
[1764339862496,0.45414,92679.0,92678.0,0.0521711]
[1764339862694,0.45414,92679.0,92678.0,0.0953311]
[1764339864189,0.45514,92679.0,92678.0,0.0953311]
[1764339864694,0.45714,92679.0,92678.0,0.0953311]
[1764339865090,0.0035,92679.0,92678.0,0.0953311]
[1764339865491,0.0015,92679.0,92678.0,0.0953311]
[1764339865701,0.0065,92679.0,92678.0,0.0953311]
[1764339867096,0.09014,92679.0,92678.0,0.0953311]
[1764339867292,0.09014,92679.0,92678.0,0.02984698]
[1764339867495,0.09014,92679.0,92678.0,0.07122698]
[1764339867694,0.09014,92679.0,92678.0,0.11438698]
[1764339869092,0.09014,92679.0,92678.0,0.02984698]
[1764339869296,0.46014,92679.0,92678.0,0.01905588]
[1764339869494,0.08364,92675.0,92674.0,0.0107915]
[1764339869702,0.08364,92675.0,92669.0,0.00016192]
[1764339869703,0.094432,92670.0,92669.0,0.00016192]
[1764339869893,0.53364,92670.0,92669.0,0.00016192]
[1764339870987,0.0107928,92664.0,92645.0,0.0107949]
[1764339871194,0.08364,92643.0,92642.0,0.08454]
[1764339871402,0.08364,92639.0,92628.0,0.02682]
[1764339871700,0.08364,92633.0,92632.0,0.08454]
[1764339872109,0.0856,92629.0,92628.0,0.02682]
[1764339872310,0.0856,92624.0,92623.0,0.00016192]
[1764339873202,0.5156,92624.0,92623.0,0.01915726]
[1764339873498,0.5156,92624.0,92623.0,0.00016192]
[1764339874203,0.5206,92624.0,92623.0,0.08453192]
[1764339874705,0.5206,92624.0,92623.0,0.00016192]
[1764339875091,0.0856,92616.0,92603.0,0.08827321]
[1764339875297,0.5156,92616.0,92603.0,0.08827321]
[1764339875798,0.5156,92616.0,92602.0,0.0107999]
[1764339875993,0.5156,92616.0,92606.0,0.00026996]
[1764339876198,0.5156,92616.0,92606.0,0.00043188]
[1764339876391,0.5156,92616.0,92615.0,0.01902856]
[1764339876604,0.0856,92607.0,92606.0,0.00043188]
[1764339876900,0.39,92607.0,92606.0,0.08480188]
[1764339877103,0.37,92607.0,92606.0,0.09560138]
[1764339877306,0.4556,92607.0,92606.0,0.09560138]
[1764339877506,0.45569573,92607.0,92606.0,0.09560138]
[1764339877709,0.46069573,92607.0,92606.0,0.09560138]
[1764339877900,0.41603573,92607.0,92606.0,0.09560138]
[1764339878105,0.45569573,92607.0,92606.0,0.09560138]
[1764339878309,0.46069573,92607.0,92606.0,0.01123138]
[1764339878506,0.46069573,92607.0,92606.0,0.05165138]
[1764339879203,0.37509573,92607.0,92606.0,0.09560138]
[1764339879414,0.41603573,92607.0,92606.0,0.09560138]
[1764339879801,0.41703573,92607.0,92606.0,0.09560138]
[1764339880304,0.46169573,92607.0,92606.0,0.00043188]
[1764339880705,0.46169573,92607.0,92606.0,0.01909045]
[1764339880911,0.46169573,92607.0,92591.0,0.0951711]
[1764339880912,0.04094,92592.0,92591.0,0.0951711]
[1764339881102,0.0856,92600.0,92599.0,0.0951703]
[1764339881304,0.2956,92600.0,92599.0,0.0951703]
[1764339881503,0.5156,92600.0,92599.0,0.0951703]
[1764339881814,0.5156,92600.0,92599.0,0.08437]
[1764339882312,0.2156,92600.0,92599.0,0.08437]
[1764339882502,0.5056,92600.0,92599.0,0.08437]
[1764339882703,0.3956,92600.0,92599.0,0.08437]
[1764339883105,0.4006,92600.0,92599.0,0.08437]
[1764339883309,0.315,92600.0,92599.0,0.08437]
[1764339883507,0.005,92600.0,92599.0,0.08437]
[1764339884509,0.04594,92600.0,92599.0,0.08437]
[1764339884717,0.0906,92600.0,92599.0,0.04042]
[1764339885009,0.0906,92600.0,92599.0,0.08437]
[1764339885212,0.4806,92600.0,92599.0,0.04042]
[1764339885711,0.4806,92600.0,92599.0,0.08437]
[1764339885913,0.4806,92600.0,92599.0,0.04042]
[1764339887205,0.0856,92598.0,92597.0,0.0108005]
[1764339887405,0.4756,92598.0,92597.0,0.0108005]
[1764339887810,0.4756,92598.0,92597.0,0.0512205]
[1764339888208,0.1456,92598.0,92597.0,0.0951705]
[1764339888410,0.10094,92598.0,92597.0,0.0951705]
[1764339888712,0.40094,92598.0,92597.0,0.0951705]
[1764339888914,0.04094,92598.0,92597.0,0.0951705]
[1764339889112,0.04494,92598.0,92597.0,0.0951705]
[1764339891918,0.0896,92598.0,92597.0,0.0951705]
[1764339893009,0.0896,92598.0,92597.0,0.0512205]
[1764339893211,0.5296,92598.0,92597.0,0.0108005]
[1764339893505,0.5296,92598.0,92597.0,0.0512205]
[1764339894111,0.5296,92598.0,92597.0,0.0951705]
[1764339894828,0.004,92598.0,92597.0,0.0951705]
[1764339895004,0.5096,92598.0,92597.0,0.0951705]
[1764339896509,0.424,92598.0,92596.0,0.0108006]
[1764339896704,0.0856,92591.0,92590.0,0.12817786]
[1764339896912,0.0856,92567.0,92566.0,0.09544418]
[1764339897110,8.736e-05,92567.0,92566.0,0.09544418]
[1764339897307,0.0856,92590.0,92589.0,0.0951715]
[1764339897511,0.2756,92590.0,92589.0,0.0951715]
[1764339897920,0.4656,92590.0,92589.0,0.08437]
[1764339898309,5.292e-05,92590.0,92589.0,0.08437]
[1764339899124,0.00405292,92590.0,92589.0,0.08437]
[1764339899729,0.51765292,92590.0,92589.0,0.08437]
[1764339899917,0.51765292,92590.0,92580.0,0.00016202]
[1764339899918,0.0856,92581.0,92580.0,0.00016202]
[1764339900123,0.4856,92581.0,92580.0,0.00016202]
[1764339900312,0.00205292,92590.0,92589.0,0.0951715]
[1764339900620,0.04094,92626.0,92625.0,0.0951672]
[1764339900812,0.4756,92626.0,92625.0,0.0951672]
[1764339901014,0.0856,92618.0,92617.0,0.04042]
[1764339901317,0.0856,92618.0,92617.0,0.0951682]
[1764339901518,0.0856,92618.0,92617.0,0.0512182]
[1764339901716,0.0856,92618.0,92617.0,0.0951682]
[1764339902220,0.0856,92618.0,92617.0,0.0107982]
[1764339902521,0.08255,92614.0,92613.0,0.0107986]
[1764339903118,0.007,92618.0,92617.0,0.0941282]
[1764339903119,0.04786,92618.0,92617.0,0.0941282]
[1764339903418,0.08955,92618.0,92617.0,0.0107982]
[1764339903814,0.08255,92610.0,92609.0,0.0941291]
[1764339904019,0.007,92618.0,92609.0,0.0941291]
[1764339904020,0.08955,92618.0,92617.0,0.0513882]
[1764339904524,0.08355,92618.0,92617.0,0.0513882]
[1764339905026,0.08355,92618.0,92617.0,0.0107982]
[1764339905225,0.08955,92618.0,92617.0,0.0107982]
[1764339905622,0.08255,92610.0,92609.0,0.03035805]
[1764339905929,0.08255,92610.0,92609.0,0.0107991]
[1764339906225,0.08255,92610.0,92609.0,0.0941291]
[1764339906419,0.08955,92618.0,92617.0,0.0941282]
[1764339906622,0.50955,92618.0,92617.0,0.0941282]
[1764339906817,0.50955,92618.0,92617.0,0.0107982]
[1764339907022,0.50855,92618.0,92617.0,0.0107982]
[1764339907516,0.50255,92618.0,92617.0,0.0107982]
[1764339907713,0.08355,92618.0,92617.0,0.0941282]
[1764339908116,0.08955,92618.0,92617.0,0.0941282]
[1764339908325,0.006,92618.0,92617.0,0.0941282]
[1764339908527,0.08271202,92627.0,92626.0,0.0513871]
[1764339908829,0.53271202,92627.0,92626.0,0.0513871]
[1764339909025,2e-08,92627.0,92626.0,0.0941271]
[1764339909225,5e-08,92646.0,92645.0,0.0941249]
[1764339909425,0.06596,92677.0,92676.0,0.0107913]
[1764339909725,0.50596,92677.0,92676.0,0.0107913]
[1764339910723,0.50596,92677.0,92667.0,0.00016192]
[1764339911123,0.06596,92674.0,92673.0,0.0107916]
[1764339911323,0.47596,92674.0,92673.0,0.0107916]
[1764339912229,0.06596,92670.0,92669.0,0.0941221]
[1764339914026,0.11482,92668.0,92667.0,0.00016192]
[1764339914219,0.56482,92668.0,92667.0,0.00016192]
[1764339915027,0.11482,92651.0,92650.0,0.02376]
[1764339915332,0.11482,92650.0,92641.0,0.0107954]
[1764339915525,0.11482,92641.0,92640.0,0.0915455]
[1764339915830,0.0107934,92659.0,92658.0,0.0107933]
[1764339915831,0.11482,92659.0,92658.0,0.0107933]
[1764339916023,0.39,92659.0,92653.0,0.03518]
[1764339916227,0.11482,92658.0,92657.0,0.0107934]
[1764339916532,0.11498192,92665.0,92664.0,0.1596027]
[1764339918427,0.11498192,92665.0,92664.0,0.1616027]
[1764339919435,0.11498192,92665.0,92664.0,0.1596027]
[1764339919623,0.11498192,92665.0,92664.0,0.1616027]
[1764339920234,0.00016192,92665.0,92664.0,0.1616027]
[1764339920932,0.00016192,92665.0,92664.0,0.1596027]
[1764339921134,0.11482,92675.0,92674.0,0.05699]
[1764339921334,0.53482,92675.0,92674.0,0.05699]
[1764339921736,0.11482,92674.0,92673.0,0.0107916]
[1764339922033,0.0005,92679.0,92678.0,0.1244211]
[1764339922229,0.11482,92676.0,92675.0,0.03518]
[1764339922428,0.51482,92676.0,92675.0,0.1596014]
[1764339922642,0.26482,92676.0,92675.0,0.1596014]
[1764339923029,0.53482,92676.0,92675.0,0.1596014]
[1764339923339,0.11482,92676.0,92675.0,0.09217]
[1764339923534,0.11482,92676.0,92675.0,0.0677813]
[1764339923842,0.11482,92674.0,92673.0,0.11563]
[1764339924042,0.11482,92674.0,92673.0,0.1264216]
[1764339924231,0.11482,92674.0,92673.0,0.1244216]
[1764339924536,0.12482,92681.0,92680.0,0.1244208]
[1764339924734,0.32482,92681.0,92680.0,0.1244208]
[1764339925941,0.01,92681.0,92680.0,0.1244208]
[1764339926932,0.01,92681.0,92680.0,0.1596008]
[1764339927127,0.01,92681.0,92680.0,0.1616008]
[1764339927536,0.01,92681.0,92680.0,0.1636008]
[1764339928441,0.12482,92681.0,92680.0,0.15281]
[1764339929650,0.01,92681.0,92680.0,0.15281]
[1764339930244,0.01,92681.0,92680.0,0.17103486]
[1764339930844,0.01,92681.0,92680.0,0.17203486]
[1764339931435,0.01,92681.0,92680.0,0.17303486]
[1764339936739,0.01,92681.0,92680.0,0.17203486]
[1764339938349,0.00016192,92683.0,92682.0,0.1082]
[1764339939337,0.05,92705.0,92704.0,0.1189881]
[1764339939546,0.02406202,92705.0,92704.0,0.1189881]
[1764339939849,0.02137592,92705.0,92704.0,0.1189881]
[1764339940254,0.00026961,92726.0,92725.0,0.1189856]
[1764339940450,0.07741057,92764.0,92737.0,0.0107842]
[1764339940746,0.07741057,92764.0,92718.0,0.03282]
[1764339940747,0.05208,92742.0,92741.0,0.10836174]
[1764339941044,0.00016082,92759.0,92741.0,0.00016174]
[1764339941245,0.02623145,92758.0,92757.0,0.1082]
[1764339941451,0.00016082,92759.0,92752.0,0.03282]
[1764339941452,0.00016082,92759.0,92758.0,0.1189818]
[1764339941645,0.00016082,92759.0,92752.0,0.03282]
[1764339941646,0.03025616,92790.0,92789.0,0.1082]
[1764339941647,0.00471616,92790.0,92789.0,0.1082]
[1764339942443,1.0,92800.0,92799.0,0.1082]
[1764339942641,0.05208,92795.0,92794.0,0.1082]
[1764339942848,0.10996,92795.0,92794.0,0.1082]
[1764339943048,0.10996,92795.0,92790.0,0.00016164]
[1764339943248,1.0,92800.0,92790.0,0.00016164]
[1764339943249,0.07188,92800.0,92799.0,0.1082]
[1764339943847,0.07188,92800.0,92794.0,0.002]
[1764339944346,0.07188,92800.0,92799.0,0.003]
[1764339944347,0.1926169,92800.0,92799.0,0.003]
[1764339944649,0.1926169,92800.0,92760.0,0.24714217]
[1764339944650,0.0107774,92796.0,92760.0,0.24714217]
[1764339945047,0.0460682,92790.0,92758.0,0.08433551]
[1764339945244,0.00016132,92783.0,92765.0,0.00016164]
[1764339945444,0.0107807,92768.0,92765.0,0.00016164]
[1764339945643,0.00016132,92783.0,92765.0,0.00016164]
[1764339945847,0.03529,92768.0,92765.0,0.00016164]
[1764339946051,0.10996,92766.0,92765.0,0.00016164]
[1764339946737,0.10996,92766.0,92758.0,0.01891381]
[1764339946738,0.10996,92759.0,92758.0,8.167e-05]
[1764339947047,0.03529,92752.0,92728.0,0.08465219]
[1764339947752,0.03529,92752.0,92708.0,0.0647253]
[1764339947753,0.00016174,92749.0,92731.0,0.00016174]
[1764339948251,0.00016174,92749.0,92732.0,0.0107847]
[1764339948437,0.00016174,92749.0,92731.0,0.00016174]
[1764339948637,0.00016174,92749.0,92739.0,0.0107839]
[1764339949754,8.167e-05,92751.0,92739.0,0.0107839]
[1764339949755,0.25148643,92868.0,92775.0,0.0107797]
[1764339949756,0.0107765,92804.0,92775.0,0.0107797]
[1764339950046,0.35431217,92800.0,92778.0,0.0107794]
[1764339950348,0.35431217,92800.0,92760.0,0.24714217]
[1764339950540,0.00016154,92789.0,92771.0,0.00016174]
[1764339950746,0.03529,92786.0,92779.0,0.0107792]
[1764339951143,0.05208,92775.0,92771.0,0.00016174]
[1764339951451,0.00016154,92789.0,92788.0,0.0107783]
[1764339952155,1e-07,92800.0,92799.0,0.010777]
[1764339952342,0.03529,92832.0,92805.0,0.0107763]
[1764339952652,0.03529,92832.0,92823.0,0.0107742]
[1764339953044,0.03529,92832.0,92818.0,0.00016165]
[1764339953349,4e-05,92834.0,92831.0,0.0107732]
[1764339954555,4e-05,92834.0,92823.0,0.002]
[1764339954952,4e-05,92834.0,92830.0,0.0107734]
[1764339955248,4e-05,92834.0,92828.0,0.0107735]
[1764339955451,4e-05,92834.0,92831.0,0.001]
[1764339955949,0.10996,92832.0,92831.0,0.001]
[1764339956150,0.10996,92831.0,92830.0,0.002]
[1764339956654,0.0107734,92830.0,92818.0,0.01905092]
[1764339956848,0.03529,92820.0,92818.0,0.01905092]
[1764339957154,0.03529,92820.0,92792.0,0.0107778]
[1764339957155,0.03529,92803.0,92792.0,0.0107778]
[1764339957356,0.03529,92803.0,92770.0,0.24714217]
[1764339957544,0.03529,92803.0,92760.0,0.54984701]
[1764339957545,0.25791907,92800.0,92760.0,0.54984701]
[1764339957750,0.03529,92786.0,92760.0,0.03379431]
[1764339957947,0.03529,92786.0,92768.0,0.0107805]
[1764339958147,0.03529,92772.0,92771.0,0.0107802]
[1764339958349,0.10996,92769.0,92768.0,0.00016165]
[1764339959344,0.10996,92755.0,92754.0,0.0107822]
[1764339959651,0.03529,92758.0,92753.0,0.00011063]
[1764339959652,0.10996,92754.0,92753.0,0.00011063]
[1764339960350,0.03529,92772.0,92753.0,0.00011063]
[1764339960351,0.03529,92815.0,92790.0,0.0099999]
[1764339960561,0.03529,92815.0,92812.0,0.0107754]
[1764339960744,0.03529,92815.0,92811.0,0.0107756]
[1764339961053,4e-05,92834.0,92833.0,0.0107731]
[1764339961858,4e-05,92834.0,92824.0,0.00016165]
[1764339961859,0.13834,92825.0,92824.0,0.00016165]
[1764339962250,0.08432,92825.0,92824.0,0.00016165]
[1764339962557,0.03424165,92834.0,92824.0,0.00016165]
[1764339962852,0.17242,92834.0,92833.0,0.006]
[1764339963253,0.03424165,92834.0,92833.0,0.0167731]
[1764339963445,0.03408,92834.0,92833.0,0.006]
[1764339963648,0.17258165,92834.0,92833.0,0.006]
[1764339964257,0.08432,92831.0,92830.0,0.0107733]
[1764339964554,0.13834,92831.0,92830.0,0.0107733]
[1764339964855,0.13834,92825.0,92824.0,0.00016165]
[1764339965243,0.14834,92825.0,92776.0,0.0107797]
[1764339965448,0.14834,92825.0,92771.0,0.08827783]
[1764339965449,0.08432,92814.0,92813.0,0.0107753]
[1764339965960,0.08432,92814.0,92800.0,0.00983825]
[1764339965961,0.08432,92813.0,92800.0,0.00983825]
[1764339966150,4e-05,92834.0,92833.0,0.0107731]
[1764339966350,0.01026926,92846.0,92845.0,0.0107717]
[1764339966945,0.01026926,92846.0,92840.0,0.00983825]
[1764339967152,0.13834,92841.0,92840.0,0.0107723]
[1764339967350,0.01026926,92846.0,92824.0,0.00016165]
[1764339967556,0.03404,92834.0,92831.0,0.0107733]
[1764339967858,0.13834,92841.0,92840.0,0.00983825]
[1764339968058,0.13834,92841.0,92837.0,0.0107725]
[1764339968261,0.13834,92841.0,92840.0,0.003]
[1764339968854,0.03404,92840.0,92839.0,0.0107724]
[1764339969258,0.03404,92840.0,92837.0,0.0107725]
[1764339969458,0.01026926,92846.0,92843.0,0.0107718]
[1764339969659,0.13834,92839.0,92831.0,0.005]
[1764339970058,0.13834,92839.0,92832.0,0.0107732]
[1764339970258,0.13834,92833.0,92832.0,0.0107732]
[1764339970462,0.13834,92833.0,92828.0,0.01932793]
[1764339970655,0.13834,92833.0,92824.0,0.01093565]
[1764339970859,0.13834,92833.0,92824.0,0.00016165]
[1764339971162,0.13834,92832.0,92831.0,0.004]
[1764339971359,0.03404,92840.0,92835.0,0.0107728]
[1764339971764,0.03404,92840.0,92832.0,0.0117731]
[1764339971960,0.03404,92840.0,92839.0,0.0107724]
[1764339972964,0.03404,92840.0,92836.0,0.0107727]
[1764339973157,0.01026926,92846.0,92845.0,0.0107717]
[1764339974360,0.01026926,92846.0,92845.0,0.002]
[1764339974361,0.08859926,92846.0,92845.0,0.002]
[1764339974555,0.17070926,92846.0,92845.0,0.002]
[1764339974865,0.16044,92840.0,92839.0,0.001]
[1764339975263,0.16044,92840.0,92832.0,0.01940982]
[1764339975462,0.16044,92840.0,92830.0,0.20567064]
[1764339975667,0.16044,92840.0,92830.0,0.00983825]
[1764339975968,0.16044,92840.0,92837.0,0.0107725]
[1764339976167,0.16044,92840.0,92830.0,0.00983825]
[1764339976168,0.01026926,92846.0,92845.0,0.0107717]
[1764339976565,0.01026926,92846.0,92845.0,0.0127717]
[1764339976954,0.01026926,92846.0,92845.0,0.0107717]
[1764339977270,0.00737706,92846.0,92845.0,0.0107717]
[1764339977458,0.08570706,92846.0,92845.0,0.0107717]
[1764339977658,0.16781706,92846.0,92845.0,0.0127717]
[1764339979855,0.16781706,92846.0,92845.0,0.002]
[1764339980062,0.00737706,92846.0,92845.0,0.002]
[1764339980359,0.00016156,92855.0,92854.0,0.0107706]
[1764339980557,0.16060156,92855.0,92854.0,0.0107706]
[1764339980966,0.16044,92846.0,92845.0,0.00216156]
[1764339981266,0.07833,92846.0,92845.0,0.00216156]
[1764339981466,0.00016156,92855.0,92854.0,0.0107706]
[1764339981674,0.03404,92891.0,92871.0,0.0107687]
[1764339981969,0.03404,92891.0,92865.0,0.0107693]
[1764339981970,0.07833,92866.0,92865.0,0.0107693]
[1764339983172,0.08133,92866.0,92865.0,0.0107693]
[1764339983371,0.003,92866.0,92865.0,0.0107693]
[1764339984174,0.08133,92866.0,92865.0,0.0107693]
[1764339984569,0.003,92866.0,92860.0,0.00983825]
[1764339984966,0.16044,92861.0,92858.0,0.0107701]
[1764339985159,0.07833,92859.0,92858.0,0.0107701]
[1764339985664,0.003,92866.0,92865.0,0.0107694]
[1764339985963,0.07933,92866.0,92865.0,0.0107694]
[1764339986368,0.00016115,92875.0,92865.0,0.0107694]
[1764339986571,0.00016115,92875.0,92871.0,0.0107687]
[1764339987473,0.00016115,92875.0,92870.0,0.0107687]
[1764339987667,0.07833,92871.0,92870.0,0.0107687]
[1764339987867,0.16044,92861.0,92858.0,0.01893278]
[1764339988070,0.05088,92888.0,92860.0,0.00999999]
[1764339988274,0.07833,92861.0,92860.0,0.19583239]
[1764339988471,0.07833,92861.0,92853.0,0.0107707]
[1764339988676,0.0107689,92869.0,92857.0,0.08409]
[1764339988975,0.05088,92871.0,92860.0,0.02076989]
[1764339989175,0.07833,92861.0,92860.0,0.0107699]
[1764339989377,0.07933,92861.0,92860.0,0.0107699]
[1764339989565,0.07933,92861.0,92859.0,0.05652261]
[1764339989566,0.16044,92860.0,92859.0,0.05652261]
[1764339989765,0.16044,92860.0,92859.0,0.01077]
[1764339989969,0.16044,92860.0,92855.0,0.05652261]
[1764339990273,0.16044,92859.0,92858.0,0.0107701]
[1764339990475,0.16044,92859.0,92855.0,0.05652261]
[1764339990476,0.16044,92855.0,92854.0,0.05668417]
[1764339990676,0.16044,92855.0,92854.0,0.00016156]
[1764339991266,0.07833,92855.0,92854.0,0.00016156]
[1764339991469,0.07933,92861.0,92860.0,0.0107699]
[1764339991869,0.07833,92861.0,92859.0,0.01077]
[1764339992072,0.07833,92861.0,92854.0,0.00016156]
[1764339992073,0.39508,92871.0,92870.0,0.0107688]
[1764339992378,0.26295,92875.0,92874.0,0.0107682]
[1764339992974,0.3442,92875.0,92874.0,0.0107682]
[1764339993480,0.3442,92875.0,92874.0,0.0107683]
[1764339993681,0.3472,92875.0,92874.0,0.0107683]
[1764339995174,0.3472,92875.0,92841.0,0.0538604]
[1764339995175,0.3442,92869.0,92868.0,0.0107689]
[1764339995380,0.3442,92869.0,92868.0,0.04851721]
[1764339995864,0.3442,92869.0,92868.0,0.0107689]
[1764339996065,0.3472,92875.0,92874.0,0.0107683]
[1764339996269,0.3878,92875.0,92874.0,0.0107683]
[1764339996676,0.3848,92875.0,92874.0,0.0107683]
[1764339997178,0.3848,92875.0,92870.0,0.05652261]
[1764339997179,0.3442,92871.0,92870.0,0.05652261]
[1764339997375,0.3442,92871.0,92861.0,0.07486966]
[1764339997376,0.3442,92867.0,92866.0,0.03777049]
[1764339997579,0.3442,92867.0,92861.0,0.05652261]
[1764339997580,0.3442,92862.0,92861.0,0.06729241]
[1764339998279,0.3442,92862.0,92850.0,0.00999999]
[1764339998280,0.3442,92859.0,92858.0,0.0107701]
[1764339999377,0.3452,92859.0,92858.0,0.0107701]
[1764340001679,0.3452,92859.0,92854.0,0.09439244]
[1764340001680,0.3442,92855.0,92854.0,0.09439244]
[1764340001881,0.3442,92855.0,92854.0,0.01952278]
[1764340005005,0.3462,92855.0,92854.0,0.01952278]
[1764340006307,0.3462,92855.0,92854.0,0.05736719]
[1764340006496,0.3442,92855.0,92854.0,0.05736719]
[1764340006696,0.3462,92855.0,92854.0,0.05736719]
[1764340007996,0.3442,92855.0,92854.0,0.05736719]
[1764340008196,0.3462,92855.0,92854.0,0.05736719]
[1764340008496,0.3462,92855.0,92854.0,0.27530278]
[1764340008900,0.3462,92855.0,92854.0,0.35875278]
[1764340009202,0.00195825,92855.0,92854.0,0.75875278]
[1764340009700,0.3848,92875.0,92874.0,0.0107683]
[1764340011805,0.3878,92875.0,92874.0,0.0107683]
[1764340012308,0.3442,92874.0,92873.0,0.07562735]
[1764340012513,0.3442,92872.0,92871.0,0.07562735]
[1764340012811,0.3442,92870.0,92869.0,0.07562735]
[1764340013108,0.3442,92869.0,92868.0,0.07562735]
[1764340013308,0.3442,92867.0,92866.0,0.0107692]
[1764340014899,0.3472,92867.0,92866.0,0.0107692]
[1764340015108,0.3472,92867.0,92860.0,0.30838723]
[1764340015109,0.3442,92863.0,92862.0,0.0107696]
[1764340015302,0.003,92867.0,92860.0,0.00999999]
[1764340015502,0.3442,92861.0,92860.0,0.02076989]
[1764340015710,0.3442,92861.0,92858.0,0.0107701]
[1764340015899,0.3442,92861.0,92860.0,0.25578]
[1764340017412,0.3442,92861.0,92860.0,0.33923]
[1764340017609,0.26295,92872.0,92871.0,0.3499987]
[1764340017808,0.3442,92866.0,92865.0,0.07563564]
[1764340018511,0.3442,92865.0,92864.0,0.07563564]
[1764340020002,0.3442,92865.0,92861.0,0.0107698]
[1764340020003,0.3442,92863.0,92862.0,0.07563564]
[1764340020303,0.3442,92855.0,92850.0,0.00999999]
[1764340020504,0.3442,92855.0,92850.0,0.02077099]
[1764340020711,0.3442,92855.0,92840.0,0.20385305]
[1764340020712,0.002,92865.0,92864.0,0.33923]
[1764340021007,0.0107653,92901.0,92864.0,0.33923]
[1764340021008,0.04824,92928.0,92874.0,0.33923]
[1764340021319,0.09656284,92949.0,92864.0,0.33923]
[1764340021320,0.3442,92969.0,92940.0,0.04791]
[1764340021613,0.26295,92949.0,92948.0,0.03770248]
[1764340021801,0.51694,92949.0,92945.0,0.05670141]
[1764340022009,0.04824,92964.0,92950.0,0.00999999]
[1764340022309,0.50488,92955.0,92950.0,0.00999999]
[1764340022505,0.04824,92964.0,92954.0,0.27051]
[1764340022506,0.0426,92959.0,92954.0,0.27051]
[1764340022703,0.50488,92948.0,92947.0,0.04845047]
[1764340023011,0.003,92969.0,92950.0,0.00999999]
[1764340023209,0.50788,92969.0,92950.0,0.00999999]
[1764340023408,0.003,92969.0,92967.0,0.27051]
[1764340023709,0.003,92969.0,92960.0,0.00999999]
[1764340023710,0.25089,92981.0,92970.0,0.00999999]
[1764340024019,0.50488,92967.0,92966.0,0.00016136]
[1764340024513,0.54748,92967.0,92966.0,0.00016136]
[1764340024716,0.5582375,92967.0,92966.0,0.00016136]
[1764340024919,0.0107544,92994.0,92966.0,0.53587]
[1764340025107,0.0107544,92994.0,92970.0,0.00999999]
[1764340025108,0.16099,92992.0,92970.0,0.00999999]
[1764340025309,0.0426,92988.0,92970.0,0.00999999]
[1764340025503,0.0426,92987.0,92971.0,0.010757]
[1764340025710,0.0426,92985.0,92970.0,0.00999999]
[1764340026009,0.0426,92985.0,92966.0,0.007]
[1764340026010,0.50488,92967.0,92966.0,0.007]
[1764340026407,0.54748,92967.0,92966.0,0.007]
[1764340026907,0.54748,92967.0,92957.0,0.00016136]
[1764340026908,0.50488,92958.0,92957.0,0.00016136]
[1764340027104,0.0426,92959.0,92957.0,0.27067136]
[1764340027413,0.0426,92961.0,92960.0,0.27051]
[1764340027913,0.00016071,92967.0,92966.0,0.27051]
[1764340028105,0.04276071,92967.0,92966.0,0.53587]